{"text_format":"3","workbook":"xlsx","n_sheets":6,"sheets":["PERÍODO","CRÉDITOS","ORÇAMENTO","DESPESAS MENSAIS LÍQUIDAS","DESPESAS SEMESTRAIS","LIVROS"],"not_rendered":{"defined_names":21},"read":"whole","date_system":"1900"}

{"sheet":"PERÍODO","index":0,"n_rows":29,"n_cols":9,"rows_kept":29,"merged":[[2,3,2,4]]}
[null,"HORÁRIO DA TURMA"]
[null,"SEMESTRE DE OUTONO"]
[null,null,"HORA DE INÍCIO","DURAÇÃO",null,"ANO"]
[null,null,"09:00:00",60,"(Em Minutos)"]
[null,"HORA ","SEG","TER","QUA","QUI","SEX","SÁB","DOM"]
[null,{"$f":"HoraDeInício+TIME(0,(ROW(A1)-1)*Duração,0)","v":"09:00:00"},"Pequeno-almoço","Pequeno-almoço","Pequeno-almoço","Pequeno-almoço","Pequeno-almoço"]
[null,"10:00:00","Negócios: Palestra Edifício B, Sala 256"]
[null,"11:00:00",{"$nulls":3},"Física: Laboratório \nEdifício J, Sala 309"]
[null,"12:00:00"]
[null,"13:00:00"]
[null,"14:00:00"]
[null,"15:00:00"]
[null,"16:00:00"]
[null,"17:00:00"]
[null,"18:00:00"]
[null,"19:00:00"]
[null,"20:00:00"]
[null,"21:00:00"]
[null,"22:00:00"]
[null,"23:00:00"]
[null,1]
[null,1.0416666666666665]
[null,1.0833333333333335]
[null,1.125]
[null,1.1666666666666665]
[null,1.2083333333333335]
[null,1.25]
[null,1.2916666666666665]
[null,1.3333333333333335]

{"sheet":"CRÉDITOS","index":1,"n_rows":17,"n_cols":8,"rows_kept":17}
[null,"FACULDADE"]
[null,"PLANEADOR DE CRÉDITOS"]
[null,"Título do Curso",{"$f":"Ano","v":"ANO"}]
[null,"PROGRESSO GERAL",null,"PROGRESSO GERAL"]
[null,{"$f":"AVERAGE(Disciplinas[NOTA])","v":3.5},{"$f":"IFERROR(TEXT(AVERAGEIF(Disciplinas[CONCLUÍDA],\"Sim\",Disciplinas[NOTA]),\"0,00\"),\"0,00\")&\" GPA Atual\"","v":"3,50 GPA Atual"},{"$f":"COUNTIF(Disciplinas[CONCLUÍDA],\"Sim\")/COUNTA(Disciplinas[TÍTULO DA DISCIPLINA])","v":0.6666666666666666},{"$f":"TEXT(COUNTIF(Disciplinas[CONCLUÍDA],\"Sim\")/COUNTA(Disciplinas[TÍTULO DA DISCIPLINA]),\"0%\")&\" Concluído\"","v":"67% Concluído"}]
[null,"Nota: o seguinte resumo de créditos é propagado automaticamente pelas suas entradas na tabela Disciplinas abaixo"]
[null,"REQUISITO","TOTAL DE CRÉDITOS","OBTIDOS","NECESSÁRIOS"]
[null,"Disciplinas Principais",{"$f":"IF(SUMIF(Disciplinas[REQUISITO],CRÉDITOS!$B8,Disciplinas[CRÉDITOS])=0,\"0\",SUMIF(Disciplinas[REQUISITO],CRÉDITOS!$B8,Disciplinas[CRÉDITOS]))","v":4},{"$f":"SUMIFS(Disciplinas[CRÉDITOS],Disciplinas[REQUISITO],CRÉDITOS!$B8,Disciplinas[CONCLUÍDA],\"Sim\")","v":4},{"$f":"SUMIF(Disciplinas[REQUISITO],CRÉDITOS!$B8,Disciplinas[CRÉDITOS])-SUMIFS(Disciplinas[CRÉDITOS],Disciplinas[REQUISITO],CRÉDITOS!$B8,Disciplinas[CONCLUÍDA],\"Sim\")","v":0}]
[null,"Disciplinas Secundárias",{"$f":"IF(SUMIF(Disciplinas[REQUISITO],CRÉDITOS!$B9,Disciplinas[CRÉDITOS])=0,\"0\",SUMIF(Disciplinas[REQUISITO],CRÉDITOS!$B9,Disciplinas[CRÉDITOS]))","v":3},{"$f":"SUMIFS(Disciplinas[CRÉDITOS],Disciplinas[REQUISITO],CRÉDITOS!$B9,Disciplinas[CONCLUÍDA],\"Sim\")","v":0},{"$f":"SUMIF(Disciplinas[REQUISITO],CRÉDITOS!$B9,Disciplinas[CRÉDITOS])-SUMIFS(Disciplinas[CRÉDITOS],Disciplinas[REQUISITO],CRÉDITOS!$B9,Disciplinas[CONCLUÍDA],\"Sim\")","v":3}]
[null,"Disciplinas Opcionais",{"$f":"IF(SUMIF(Disciplinas[REQUISITO],CRÉDITOS!$B10,Disciplinas[CRÉDITOS])=0,\"0\",SUMIF(Disciplinas[REQUISITO],CRÉDITOS!$B10,Disciplinas[CRÉDITOS]))","v":2},{"$f":"SUMIFS(Disciplinas[CRÉDITOS],Disciplinas[REQUISITO],CRÉDITOS!$B10,Disciplinas[CONCLUÍDA],\"Sim\")","v":2},{"$f":"SUMIF(Disciplinas[REQUISITO],CRÉDITOS!$B10,Disciplinas[CRÉDITOS])-SUMIFS(Disciplinas[CRÉDITOS],Disciplinas[REQUISITO],CRÉDITOS!$B10,Disciplinas[CONCLUÍDA],\"Sim\")","v":0}]
[null,"Estudos Gerais",{"$f":"IF(SUMIF(Disciplinas[REQUISITO],CRÉDITOS!$B11,Disciplinas[CRÉDITOS])=0,\"0\",SUMIF(Disciplinas[REQUISITO],CRÉDITOS!$B11,Disciplinas[CRÉDITOS]))","v":"0"},{"$f":"SUMIFS(Disciplinas[CRÉDITOS],Disciplinas[REQUISITO],CRÉDITOS!$B11,Disciplinas[CONCLUÍDA],\"Sim\")","v":0},{"$f":"SUMIF(Disciplinas[REQUISITO],CRÉDITOS!$B11,Disciplinas[CRÉDITOS])-SUMIFS(Disciplinas[CRÉDITOS],Disciplinas[REQUISITO],CRÉDITOS!$B11,Disciplinas[CONCLUÍDA],\"Sim\")","v":0}]
[null,"Total",{"$f":"SUBTOTAL(109,CRÉDITOS!$C$8:$C$11)","v":9},{"$f":"SUBTOTAL(109,CRÉDITOS!$D$8:$D$11)","v":6},{"$f":"SUBTOTAL(109,CRÉDITOS!$E$8:$E$11)","v":3}]
[null,"Disciplinas"]
[null,"TÍTULO DA DISCIPLINA","N.º DA DISCIPLINA","REQUISITO","CRÉDITOS","CONCLUÍDA","NOTA","SEMESTRE"]
[null,"Disciplina 1","Número","Disciplinas Principais",4,"Sim",{"v":4,"d":"4.0"},"Semestre 1"]
[null,"Disciplina 2","Número","Disciplinas Secundárias",3,"Não",null,"Semestre 1"]
[null,"Disciplina 3","Número","Disciplinas Opcionais",2,"Sim",{"v":3,"d":"3.0"},"Semestre 1"]

{"sheet":"ORÇAMENTO","index":2,"n_rows":15,"n_cols":4,"rows_kept":15}
[null,{"$f":"Faculdade","v":"FACULDADE"}]
[null,"CONTROLADOR DE ORÇAMENTO"]
[null,"O Meu Orçamento",{"$f":"Ano","v":"ANO"}]
[null,"PERCENTAGEM DE RENDIMENTOS GASTOS"]
[null,{"$f":"DESPESAS_MENSAIS_LÍQUIDAS/RENDIMENTOS_MENSAIS_LÍQUIDOS","v":{"v":0.7454545454545455,"d":"75%"}}]
[null,{"$f":"B5","v":0.7454545454545455}]
[null,"RENDIMENTOS MENSAIS LÍQUIDOS","DESPESAS MENSAIS LÍQUIDAS","SALDO"]
[null,{"$f":"C10","v":{"v":2750,"d":"2,750 €"}},{"$f":"'DESPESAS MENSAIS LÍQUIDAS'!C4+'DESPESAS SEMESTRAIS'!D4","v":{"v":2050,"d":"2,050 €"}},{"$f":"RENDIMENTOS_MENSAIS_LÍQUIDOS-DESPESAS_MENSAIS_LÍQUIDAS","v":{"v":700,"d":"700 €"}}]
[null,"Meses no semestre",4]
[null,"RENDIMENTOS MENSAIS",{"$f":"SUM(RendimentoMensal[MONTANTE])","v":{"v":2750,"d":"2,750 €"}}]
[null,"ITEM","MONTANTE"]
[null,"Rendimentos fixos",{"v":1500,"d":"1,500 €"}]
[null,"Ajuda financeira",{"v":500,"d":"500 €"}]
[null,"Empréstimos",{"v":500,"d":"500 €"}]
[null,"Outros rendimentos",{"v":250,"d":"250 €"}]

{"sheet":"DESPESAS MENSAIS LÍQUIDAS","index":3,"n_rows":15,"n_cols":3,"rows_kept":15}
[null,{"$f":"Faculdade","v":"FACULDADE"}]
[null,"CONTROLADOR DE ORÇAMENTO"]
[null,"Despesas Mensais",{"$f":"Ano","v":"ANO"}]
[null,"DESPESAS MENSAIS",{"$f":"SUM(DespesasMensais[MONTANTE])","v":{"v":1675,"d":"1,675 €"}}]
[null,"ITEM","MONTANTE"]
[null,"Renda",{"v":300,"d":"300 €"}]
[null,"Serviços públicos",{"v":50,"d":"50 €"}]
[null,"Telemóvel",{"v":75,"d":"75 €"}]
[null,"Compras",{"v":250,"d":"250 €"}]
[null,"Despesas com automóvel",{"v":50,"d":"50 €"}]
[null,"Empréstimos escolares",{"v":500,"d":"500 €"}]
[null,"Cartões de crédito",{"v":275,"d":"275 €"}]
[null,"Seguro",{"v":125,"d":"125 €"}]
[null,"Lazer",{"v":50,"d":"50 €"}]
[null,"Diversos",{"v":0,"d":"0 €"}]

{"sheet":"DESPESAS SEMESTRAIS","index":4,"n_rows":11,"n_cols":4,"rows_kept":11}
[null,{"$f":"Faculdade","v":"FACULDADE"}]
[null,"CONTROLADOR DE ORÇAMENTO"]
[null,"Despesas Semestrais",{"$f":"Ano","v":"ANO"}]
[null,"DESPESAS SEMESTRAIS (Total/Por Mês)",{"$f":"SUM(DespesasSemestrais[MONTANTE])","v":{"v":1500,"d":"1,500 €"}},{"$f":"SUM(DespesasSemestrais[POR MÊS])","v":{"v":375,"d":"375 €"}}]
[null,"ITEM","MONTANTE","POR MÊS"]
[null,"Propinas",{"v":750,"d":"750 €"},{"$f":"DespesasSemestrais[[#This Row],[MONTANTE]]/Meses_no_semestre","v":{"v":187.5,"d":"188 €"}}]
[null,"Despesas de laboratório",{"v":250,"d":"250 €"},{"$f":"DespesasSemestrais[[#This Row],[MONTANTE]]/Meses_no_semestre","v":{"v":62.5,"d":"63 €"}}]
[null,"Livros",{"v":500,"d":"500 €"},{"$f":"DespesasSemestrais[[#This Row],[MONTANTE]]/Meses_no_semestre","v":{"v":125,"d":"125 €"}}]
[null,"Cauções",{"v":0,"d":"0 €"},{"$f":"DespesasSemestrais[[#This Row],[MONTANTE]]/Meses_no_semestre","v":{"v":0,"d":"0 €"}}]
[null,"Transportes",{"v":0,"d":"0 €"},{"$f":"DespesasSemestrais[[#This Row],[MONTANTE]]/Meses_no_semestre","v":{"v":0,"d":"0 €"}}]
[null,"Outras despesas",{"v":0,"d":"0 €"},{"$f":"DespesasSemestrais[[#This Row],[MONTANTE]]/Meses_no_semestre","v":{"v":0,"d":"0 €"}}]

{"sheet":"LIVROS","index":5,"n_rows":7,"n_cols":7,"rows_kept":7}
[null,{"$f":"Faculdade","v":"FACULDADE"}]
[null,"CONTROLADOR DE LIVROS"]
[null,"Lista de Livros"]
[null,"TÍTULO","AUTOR","DISCIPLINA","ONDE COMPRAR?","ISBN","NOTAS"]
[null,"Título do Livro","Autor","Disciplina","Localização","Número"]
[null,"Título do Livro","Autor","Disciplina","Localização","Número"]
[null,"Título do Livro","Autor","Disciplina","Localização","Número"]